[Event "LEM Niedersachsen-Meister 2025"]
[Site "Verden"]
[Date "2025.01.03"]
[Round "4.1"]
[White "Abel, Dennes"]
[Black "Bruns, Kai-Christian"]
[Result "1-0"]
[ECO "D11"]
[WhiteElo "2381"]
[BlackElo "2157"]
[Annotator "TA"]
[PlyCount "69"]
[EventDate "2024.12.27"]
[EventType "swiss"]
[EventCountry "GER"]
[SourceTitle "playchess.com"]
[Source "ChessBase"]
[SourceQuality "1"]
[TimeControl "40/5400+30:1800+30"]

{[%evp 11,69,0,0,0,0,0,0,0,0,0,0,-27,16,13,0,2,14,5,24,20,25,21,37,35,48,47,50,0,104,120,104,115,113,89,102,99,152,154,214,224,212,218,265,238,262,238,363,329,512,518,536,514,556,589,575,610,591,580,999,987]} 1. d4 {[%emt 0:02:43]} d5 {[%emt 0:00:44]} 2. Nf3 {[%emt 0:00:12]} Nf6 {[%emt 0:00:05]} 3. g3 {[%emt 0:00:11]} c6 {[%emt 0:01:59]} 4. Bg2 {[%emt 0:00:17]} Bf5 {[%emt 0:00:15]} 5. c4 {[%emt 0:00:08]} e6 {[%emt 0:00:34]} 6. Nc3 {[%emt 0:00:07]} h6 {[%emt 0:04:12]} 7. Qb3 {[%emt 0:00:27]} Qb6 {[%emt 0:00:24]} 8. c5 {[%emt 0:00:07]} Qxb3 {[%emt 0:00:05]} 9. axb3 {[%emt 0:00:03]} Be7 {[%emt 0:00:29]} 10. b4 {[%emt 0:01:13]} O-O {[%emt 0:00:43]} 11. h3 {[%emt 0:04:00]} a6 {[%emt 0:00:25]} 12. g4 {[%emt 0:00:09]} Bh7 {[%emt 0:01:53]} 13. Bf4 {[%emt 0:00:08]} Nbd7 {[%emt 0:01:07]} 14. e3 {[%emt 0:08:57]} Rfe8 {[%emt 0:06:55]} 15. Bh2 {[%emt 0:11:15]} Rac8 {[%emt 0:02:28]} 16. Nd2 {[%emt 0:03:42]} Bd8 {[%emt 0:11:00]} 17. f4 {[%emt 0:00:52]} g5 {[%emt 0:12:50]} 18. O-O {[%emt 0:03:59]} Kg7 {[%emt 0:04:20]} 19. Rf2 {[%emt 0:04:51]} (19. e4 $14) 19... Bg6 {[%emt 0:06:53]} (19... gxf4 $11 {remains equal.} 20. exf4 Re7) 20. f5 $16 {[%emt 0:18:14]} exf5 {[%emt 0:02:50]} 21. gxf5 {[%emt 0:00:08]} Bh7 {[%emt 0:04:23]} 22. e4 {[%emt 0:00:42] White is more active.} dxe4 {[%emt 0:00:30]} 23. Ndxe4 {[%emt 0:00:53]} Nxe4 {[%emt 0:03:19]} ({Black should play} 23... Be7 24. Nd2 Kg8) 24. Nxe4 {[%emt 0:00:29] Hoping for Nd6.} Bc7 {[%emt 0:01:21] [#]} (24... Be7 $16 {was worth a try.} 25. Rff1 h5) 25. Bxc7 $1 $18 {[%emt 0:07:04]} Rxc7 {[%emt 0:00:02]} 26. f6+ {[%emt 0:00:34]} ({Don't do} 26. Nd6 $6 Re7 $16) 26... Kg8 {[%emt 0:02:06]} 27. Nd6 {[%emt 0:00:16]} Re3 {[%emt 0:07:03]} 28. d5 {[%emt 0:08:14]} Ne5 {[%emt 0:00:36]} (28... cxd5 $142 29. Bxd5 Bg6) 29. dxc6 {[%emt 0:01:34]} Nxc6 {[%emt 0:00:45]} (29... bxc6 $142 30. Rxa6 Bd3 31. Ra8+ Kh7) 30. b5 {[%emt 0:00:48][%cal Bb4b5,Bb5a6,Ba6a7][%mdl 32]} Nd4 {[%emt 0:09:57]} 31. c6 {[%emt 0:01:05]} ({Weaker is} 31. Bxb7 Nxb5 32. Bxa6 Nd4 $18) 31... bxc6 {[%emt 0:01:03]} 32. bxa6 {[%emt 0:04:13]} Ra7 {[%emt 0:01:12]} 33. Nc8 {[%emt 0:01:16]} Ra8 {[%emt 0:00:11] [#]} 34. a7 $1 {[%emt 0:01:16]} Rb3 {[%emt 0:03:50]} (34... Be4 35. Nb6) 35. Ne7+ {[%emt 0:00:14]} 1-0

[Event "LEM Niedersachsen-Meister 2025"]
[Site "Verden"]
[Date "2025.01.03"]
[Round "4.2"]
[White "Polster, Christian"]
[Black "von Mettenheim, Johannes"]
[Result "1-0"]
[ECO "D02"]
[WhiteElo "2252"]
[BlackElo "2333"]
[Annotator "TA"]
[PlyCount "81"]
[EventDate "2024.12.27"]
[EventType "swiss"]
[EventCountry "GER"]
[SourceTitle "playchess.com"]
[Source "ChessBase"]
[SourceQuality "1"]
[TimeControl "40/5400+30:1800+30"]

{[%evp 11,81,10,13,17,31,31,25,18,4,-6,-8,-1,0,-44,-38,-57,-57,-95,-81,-102,-41,-58,140,128,174,165,194,109,116,75,236,227,381,368,478,433,550,554,708,702,790,789,809,796,887,421,385,230,233,255,239,249,222,212,216,186,249,241,318,306,367,381,386,401,522,508,492,411,846,842,833,822]} 1. d4 {[%emt 0:01:19]} Nf6 {[%emt 0:01:35]} 2. Bf4 {[%emt 0:00:18]} d5 {[%emt 0:00:08]} 3. e3 {[%emt 1:30:23]} c5 {[%emt 0:00:57]} 4. c3 {[%emt 0:00:00]} Nc6 {[%emt 0:00:26]} 5. Nd2 {[%emt 0:00:00]} e6 {[%emt 0:00:48]} 6. Ngf3 {[%emt 0:00:00]} cxd4 {[%emt 0:00:13]} 7. exd4 {[%emt 0:00:00]} Nh5 {[%emt 0:00:05]} 8. Be3 {[%emt 0:00:00]} Bd6 {[%emt 0:00:07] [#]} 9. Ne5 $1 {[%emt 0:00:00]} g6 {[%emt 0:02:05]} (9... Nf6 10. f4) 10. Be2 {[%emt 0:00:00]} Ng7 {[%emt 0:03:45]} 11. Nd3 {[%emt 0:00:00]} f6 {[%emt 0:03:31]} 12. Bf4 {[%emt 0:00:00]} e5 {[%emt 0:06:45]} 13. dxe5 {[%emt 0:00:00]} fxe5 {[%emt 0:00:22]} 14. Bg3 {[%emt 0:00:00]} h5 {[%emt 0:04:13]} 15. f3 {[%emt 0:00:00]} h4 {[%emt 0:06:35]} (15... Qe7 $17 {Threatens to win with ...Nf5.} 16. O-O Bf5) 16. Bf2 $15 {[%emt 0:00:00]} Qg5 $2 {[%emt 0:00:19]} (16... Qe7 $15 {stays ahead.} 17. O-O Bf5) 17. Qb3 $1 $16 {[%emt 0:00:00]} Ne7 {[%emt 0:00:38]} (17... d4 $16) 18. c4 $18 {[%emt 0:00:00]} Be6 {[%emt 0:06:30] [#]} 19. cxd5 {[%emt 0:00:00]} (19. f4 $1 $18 {[%cal Rf4g5]} exf4 (19... Qxg2 20. Rg1 $16) 20. c5 (20. Nf3 Qf5 $16)) 19... Bxd5 $16 {[%emt 0:00:26]} 20. Ne4 {[%emt 0:00:00]} (20. Qa4+ {simplifies} Bc6 21. Ne4 Bxa4 22. Nxg5 Ngf5 23. O-O) 20... Bxe4 $2 {[%emt 0:03:10]} (20... Bxb3 $16 21. Nxg5 Be6) 21. fxe4 $18 {[%emt 0:00:00]} Qxg2 $2 {[%emt 0:00:31]} (21... Nh5 22. Qb5+ (22. Qxb7 Rb8 $16) 22... Kf7) 22. Qa4+ {[%emt 0:00:00]} Kf7 {[%emt 0:04:24]} 23. Qc4+ {[%emt 0:00:00]} (23. Rf1 Kg8 24. Qd7 (24. Bxa7 Kh7 $17) 24... Nc8 $18) 23... Kf8 {[%emt 0:04:54][%cal Bf7f8,Bf8e8,Be8e7][%mdl 32] [#]} 24. Rf1 $1 {[%emt 0:00:00]} b5 {[%emt 0:00:49]} 25. Qb3 {[%emt 0:00:00]} Qxe4 {[%emt 0:00:58]} 26. Bc5+ {[%emt 0:00:00]} (26. Bxh4+ $2 Ngf5 27. Bxe7+ Kxe7 $19) 26... Ngf5 {[%emt 0:00:10]} 27. Bxd6 {[%emt 0:00:00]} Ke8 {[%emt 0:04:10]} 28. Bxe7 {[%emt 0:00:00]} (28. Rxf5 $142 {White threatens Qf7+ and mate.} gxf5 29. Qe6 (29. Bxe5 Rg8 $14) (29. Nxe5 Rh7 $18) (29. Qxb5+ Kf7 $18)) 28... Kxe7 {[%emt 0:00:57]} 29. Qb4+ {[%emt 0:00:00]} ({Weaker is} 29. Qxb5 Qxe2+ 30. Kxe2 Nd4+ 31. Kd2 Nxb5 $16) (29. Qa3+ $142 b4 30. Qa6 (30. Qxb4+ Qxb4+ 31. Nxb4 Rac8 $18) (30. Nxb4 Kf7 $18)) 29... Qxb4+ {[%emt 0:00:14]} 30. Nxb4 {[%emt 0:00:00]} Nd4 {[%emt 0:02:14]} 31. Rc1 {[%emt 0:00:30]} Rac8 {[%emt 0:00:30]} 32. Kd2 {[%emt 0:01:19]} Rxc1 {[%emt 0:07:11]} 33. Rxc1 {[%emt 0:00:14]} Kd6 {[%emt 0:00:14]} (33... Rd8 {keeps fighting.}) 34. Nc2 {[%emt 0:00:48] and Nxd4 would now be decisive} Ne6 {[%emt 0:01:00]} 35. Bxb5 {[%emt 0:01:48]} Rb8 {[%emt 0:00:15]} 36. Bc4 {[%emt 0:00:15]} Ng5 {[%emt 0:01:37]} 37. b3 {[%emt 0:00:52]} e4 {[%emt 0:02:01]} 38. Nd4 {[%emt 0:01:27]} Rf8 {[%emt 0:01:40]} 39. Rg1 {[%emt 0:02:17]} Nh3 {[%emt 0:00:56]} (39... Nf3+ $142 40. Nxf3 Rxf3 41. Rxg6+ Ke5 42. Rg5+ Kf4) 40. Rxg6+ {[%emt 0:00:25]} Ke5 {[%emt 0:00:05]} 41. Ke3 {[%emt 0:30:09]} 1-0

[Event "LEM Niedersachsen-Meister 2025"]
[Site "Verden"]
[Date "2025.01.03"]
[Round "4.3"]
[White "Voege, Tobias"]
[Black "Nechitaylo, Nikita"]
[Result "1/2-1/2"]
[ECO "D36"]
[WhiteElo "2292"]
[BlackElo "2239"]
[Annotator "TA"]
[PlyCount "51"]
[EventDate "2024.12.27"]
[EventType "swiss"]
[EventCountry "GER"]
[SourceTitle "playchess.com"]
[Source "ChessBase"]
[SourceQuality "1"]
[TimeControl "40/5400+30:1800+30"]

{[%evp 21,51,0,-2,-42,-46,-43,-43,-51,-54,-71,-42,-43,-53,-55,-56,-87,-83,-71,-13,-14,-27,-54,-60,-65,-61,-64,-50,-39,-25,-18,-25,-54]} 1. d4 {[%emt 0:00:01]} Nf6 {[%emt 0:00:03]} 2. c4 {[%emt 0:00:14]} e6 {[%emt 0:00:03]} 3. Nf3 {[%emt 0:00:13]} Bb4+ {[%emt 0:03:17]} 4. Bd2 {[%emt 0:01:09]} Be7 {[%emt 0:00:53]} 5. Nc3 {[%emt 0:02:42]} d5 {[%emt 0:00:22]} 6. cxd5 {[%emt 0:02:20]} exd5 {[%emt 0:00:04]} 7. Qc2 {[%emt 0:01:17]} c6 {[%emt 0:00:25]} 8. Bg5 {[%emt 0:03:18]} g6 {[%emt 0:00:32]} 9. e3 {[%emt 0:04:15]} Bf5 {[%emt 0:00:04]} 10. Bd3 {[%emt 0:02:31]} Bxd3 {[%emt 0:00:05]} 11. Qxd3 {[%emt 0:00:06]} O-O {[%emt 0:00:13]} 12. O-O-O {[%emt 0:11:55] [#]} Ne4 $1 {[%emt 0:02:49]} 13. Bxe7 {[%emt 0:00:33]} Qxe7 {[%emt 0:00:04]} 14. Rhf1 {[%emt 1:06:56] Black is slightly better.} a5 {[%emt 0:05:15]} 15. Nd2 {[%emt 0:00:00]} Nxd2 {[%emt 0:13:03]} 16. Rxd2 {[%emt 0:00:00]} b5 {[%emt 0:01:01]} 17. f3 {[%emt 0:00:00]} Nd7 {[%emt 0:11:22]} 18. e4 {[%emt 0:00:00]} b4 {[%emt 0:01:41]} 19. Na4 {[%emt 0:00:00]} Rfe8 {[%emt 0:00:21]} (19... dxe4 $17 20. fxe4 c5) 20. e5 $11 {[%emt 0:00:00]} c5 {[%emt 0:00:08]} 21. Nxc5 {[%emt 0:00:00]} Rac8 {[%emt 0:01:50]} 22. f4 {[%emt 0:00:00]} Nxc5 {[%emt 0:00:22]} 23. dxc5 {[%emt 0:00:00][%cal Od2c2]} Rxc5+ {[%emt 0:00:14]} 24. Rc2 {[%emt 0:00:00]} Rec8 {[%emt 0:01:01]} 25. Rxc5 {[%emt 0:00:00]} Qxc5+ {[%emt 0:01:13]} (25... Rxc5+ $2 26. Kb1 $19) 26. Kb1 {[%emt 0:00:00] Weighted Error Value: White=0.10 (very precise) /Black=0.11 (very precise) .  Mistake:       	---       	Black=1      Inaccurate:     	White=2     	Black=1      OK:         	White=4     	Black=5      Best:        	White=2     	---} 1/2-1/2

[Event "LEM Niedersachsen-Meister 2025"]
[Site "Verden"]
[Date "2025.01.03"]
[Round "4.4"]
[White "Knuedel, Torben"]
[Black "Stelmaszyk, Nico"]
[Result "1-0"]
[ECO "B33"]
[WhiteElo "2308"]
[BlackElo "2403"]
[Annotator "TA"]
[PlyCount "81"]
[EventDate "2024.12.27"]
[EventType "swiss"]
[EventCountry "GER"]
[SourceTitle "playchess.com"]
[Source "ChessBase"]
[SourceQuality "1"]
[TimeControl "40/5400+30:1800+30"]

{[%evp 26,81,24,20,92,97,100,95,85,91,84,84,110,68,77,81,75,56,55,57,160,160,166,173,181,168,212,168,201,179,179,132,137,143,132,119,184,152,166,152,145,151,531,510,29991,92,29992,29993,29993,29994,29994,5047,29985,29984,29996,29991,29997,29998]} 1. e4 {[%emt 0:04:46]} c5 {[%emt 0:00:05]} 2. Nf3 {[%emt 0:00:03][%cal Bg1f3,Bf3d4,Bd4b5][%mdl 32]} Nc6 {[%emt 0:00:04]} 3. Nc3 {[%emt 0:00:06]} Nf6 {[%emt 0:00:05]} 4. d4 {[%emt 0:04:25]} cxd4 {[%emt 0:00:06]} 5. Nxd4 {[%emt 0:00:04]} e5 {[%emt 0:00:09]} 6. Ndb5 {[%emt 0:00:16]} d6 {[%emt 0:00:08]} 7. a4 {[%emt 0:01:50]} a6 {[%emt 0:00:12]} 8. Na3 {[%emt 0:00:05]} Be7 {[%emt 0:03:35]} 9. Bg5 {[%emt 0:05:33]} O-O {[%emt 0:09:36]} 10. Bxf6 {[%emt 0:01:06]} Bxf6 {[%emt 0:04:16]} 11. Nd5 {[%emt 0:00:10]} Be6 {[%emt 0:05:52]} 12. Bc4 {[%emt 0:00:27]} Bg5 {[%emt 0:02:41]} 13. O-O {[%emt 0:01:34]} Kh8 {[%emt 0:10:15]} 14. c3 {[%emt 0:02:00]} f5 {[%emt 0:04:38] [#]} (14... g6 $11) 15. Nb6 $1 $16 {[%emt 0:05:17]} Qxb6 {[%emt 0:00:49]} 16. Bxe6 {[%emt 0:00:05]} fxe4 {[%emt 0:17:53] White is better.} 17. Nc4 {[%emt 0:00:41]} (17. Qxd6 $2 {perishes.} Rad8 (17... Qxb2 18. Qc5 $17) 18. Nc4 Rxd6 $19) 17... Qd8 {[%emt 0:00:24]} 18. Qxd6 {[%emt 0:02:57]} Rf6 {[%emt 0:00:49]} 19. Qxd8+ {[%emt 0:08:26]} Rxd8 {[%emt 0:00:07]} 20. Bg4 {[%emt 0:03:26][%cal Be6g4,Bg4h5,Bh5e8][%mdl 32]} b5 {[%emt 0:10:33]} 21. axb5 {[%emt 0:00:24]} axb5 {[%emt 0:00:04]} 22. Ne3 $36 {[%emt 0:02:11][%mdl 2048] White is pushing.} h5 {[%emt 0:03:12]} 23. Bxh5 {[%emt 0:08:04]} Rd2 {[%emt 0:01:11][%cal Of6f2]} 24. Ng4 {[%emt 0:02:27]} Rfd6 {[%emt 0:08:12][%cal Og7g6]} 25. Be8 {[%emt 0:01:56]} Nd8 {[%emt 0:00:47]} 26. Rae1 {[%emt 0:20:25]} e3 {[%emt 0:04:49]} 27. fxe3 {[%emt 0:05:27]} Rxb2 {[%emt 0:00:21]} 28. Nxe5 {[%emt 0:03:21]} ({White should play} 28. Rb1 $18 Rxb1 29. Rxb1) 28... Bf6 {[%emt 0:02:44]} 29. Ng6+ {[%emt 0:04:19]} Kg8 {[%emt 0:01:07][%cal Od6d2]} 30. Rd1 {[%emt 0:01:14]} Nb7 {[%emt 0:01:12]} (30... Rxd1 $16 {keeps fighting.} 31. Rxd1 Ne6) 31. e4 $18 {[%emt 0:06:07] [#] Threatens to win with e5.} Rxd1 {[%emt 0:02:29]} 32. Rxd1 {[%emt 0:00:05] Rd5 is the strong threat.} Bxc3 {[%emt 0:00:27]} 33. h4 {[%emt 0:00:57]} b4 $2 {[%emt 0:02:01]} (33... Nc5 $16 {is tougher.}) 34. Rd7 {[%emt 0:02:12]} Nc5 {[%emt 0:00:22]} (34... Nd6 $18) 35. Bf7+ {[%emt 0:00:16]} Kh7 {[%emt 0:00:17]} 36. Rd8 {[%emt 0:00:31][%csl Gg6][%cal Rd8h8]} Rb1+ {[%emt 0:00:41]} 37. Kh2 {[%emt 0:00:24][%csl Gg6][%cal Rd8h8]} Be5+ {[%emt 0:00:05]} 38. Nxe5 {[%emt 0:01:24]} (38. g3 $142 Bxg3+ 39. Kg2 (39. Kxg3 Rg1+ 40. Kf4 Rxg6 $18) 39... Rb2+ 40. Kh3 (40. Kxg3 Nxe4+ 41. Kg4 Rg2+ 42. Kf5 Rf2+ 43. Nf4 g5 $18) 40... Rh2+ 41. Kxg3 Rh3+ 42. Kxh3 Nxe4 43. Rh8#) 38... g5 {[%emt 0:00:30]} 39. hxg5 {[%emt 0:00:22][%cal Bh4g5,Bg5g6][%mdl 32] White mates.} b3 {[%emt 0:00:24]} 40. g6+ {[%emt 0:00:54]} Kg7 {[%emt 0:00:14]} 41. Ng4 {[%emt 0:30:14] Weighted Error Value: White=0.09 (flawless) /Black=0.79.  Loses game:     	---       	Black=2      Mistake:       	White=1     	Black=3      Inaccurate:     	White=1     	Black=1      OK:         	White=11    	Black=6      Best:        	White=2     	Black=3} 1-0

[Event "LEM Niedersachsen-Meister 2025"]
[Site "Verden"]
[Date "2025.01.03"]
[Round "4.5"]
[White "Giorgadze, Giorgi Gel"]
[Black "Hampel, Felix"]
[Result "0-1"]
[ECO "B48"]
[WhiteElo "2569"]
[BlackElo "2343"]
[Annotator "TA"]
[PlyCount "77"]
[EventDate "2024.12.27"]
[EventType "swiss"]
[EventCountry "GER"]
[SourceTitle "playchess.com"]
[Source "ChessBase"]
[SourceQuality "1"]
[TimeControl "40/5400+30:1800+30"]

{[%evp 11,77,23,40,20,11,1,11,22,37,36,46,53,48,46,57,48,45,52,64,87,77,74,80,63,78,54,33,-8,-12,-9,54,43,58,0,0,0,0,0,0,-146,-126,-159,-89,-102,-113,-112,-108,-137,-126,-209,-142,-224,-218,-241,-243,-250,-248,-397,-365,-671,-705,-381,29986,-583,-581,-29995,-29996,-29996]} 1. e4 {[%emt 0:03:32]} c5 {[%emt 0:00:09]} 2. Nf3 {[%emt 0:00:45]} e6 {[%emt 0:00:08]} 3. d4 {[%emt 0:00:23]} cxd4 {[%emt 0:00:08]} 4. Nxd4 {[%emt 0:00:03]} Nc6 {[%emt 0:00:14]} 5. Nc3 {[%emt 0:00:07]} Qc7 {[%emt 0:00:07]} 6. Be3 {[%emt 0:00:08]} a6 {[%emt 0:00:07]} 7. g4 {[%emt 0:00:04]} h6 {[%emt 0:03:01]} 8. Qd2 {[%emt 0:28:43]} Nf6 {[%emt 0:11:24]} 9. f3 {[%emt 0:03:09]} b5 {[%emt 0:06:14][%cal Bb7b5,Bb5b4][%mdl 32]} 10. Nxc6 {[%emt 0:04:13]} Qxc6 {[%emt 0:04:22]} 11. O-O-O {[%emt 0:07:51]} Bb7 {[%emt 0:06:38]} 12. Bd3 {[%emt 0:10:32]} Bc5 {[%emt 0:08:23]} 13. h4 {[%emt 0:07:21]} b4 {[%emt 0:13:41]} 14. Ne2 {[%emt 0:02:46]} Qb6 {[%emt 0:04:31]} 15. Bxc5 {[%emt 0:01:17]} Qxc5 {[%emt 0:00:03]} 16. g5 {[%emt 0:09:41]} Nh5 {[%emt 0:03:07]} 17. Kb1 {[%emt 0:02:03]} Bc6 {[%emt 0:02:39]} 18. Rdg1 {[%emt 0:04:29]} a5 {[%emt 0:03:09]} 19. Nf4 {[%emt 0:05:50]} Nxf4 {[%emt 0:00:52]} 20. Qxf4 {[%emt 0:00:02]} e5 {[%emt 0:06:09]} (20... h5 $11) 21. Qf5 $14 {[%emt 0:03:14]} h5 {[%emt 0:02:07]} 22. f4 {[%emt 0:00:06]} (22. b3 $1 $14) 22... d6 $1 $11 {[%emt 0:00:56]} 23. g6 {[%emt 0:01:19]} f6 $1 {[%emt 0:00:05]} 24. Qe6+ {[%emt 0:01:03]} Kd8 {[%emt 0:00:01]} 25. Rd1 {[%emt 0:00:50]} (25. fxe5 $11 {was the only way to keep the balance.} dxe5 26. Ka1) 25... Re8 {[%emt 0:00:49]} 26. Qf5 {[%emt 0:00:31]} exf4 {[%emt 0:00:33]} (26... a4 $142 $1 {[%cal Ra4a3] aiming for ...a3.} 27. Qxh5 a3) 27. Qxf4 {[%emt 0:00:07]} a4 {[%emt 0:06:24]} 28. Rhe1 {[%emt 0:02:16][%cal Oc2c3]} Re5 {[%emt 0:01:05]} (28... Kc7 {with more complications.} 29. Qe3 a3 30. b3 Qc3) 29. Re2 {[%emt 0:01:29]} Kc7 {[%emt 0:00:42]} 30. Rde1 {[%emt 0:01:02]} (30. Qd2 $17) 30... Rae8 {[%emt 0:03:26]} 31. Qc1 {[%emt 0:00:23]} (31. Qd2 $17) 31... a3 $19 {[%emt 0:01:56]} 32. b3 {[%emt 0:00:18]} Qd4 {[%emt 0:01:23][%cal Rc6e4] White is weak on the dark squares} 33. Rd1 {[%emt 0:00:10]} Qc3 {[%emt 0:00:25][%cal Od6d5]} ({Stronger than} 33... Bxe4 34. Bxe4 Qc3 35. Rde1 $11) 34. Rde1 {[%emt 0:00:35]} (34. Re3 $142 Qc5 (34... Bxe4 35. Bxe4 Qc5 36. Red3 $17) 35. Rh3) 34... d5 {[%emt 0:06:05]} 35. exd5 $2 {[%emt 0:00:23]} (35. Re3 Qc5 (35... dxe4 36. Bc4 $17) 36. Rf1) 35... Bxd5 {[%emt 0:01:50][%cal Oe5e2]} 36. Rxe5 {[%emt 0:00:37] [#]} Re7 $4 {[%emt 0:05:37][%mdl 8192] [#]} 37. Re6 $4 {[%mdl 8192]} Rxe6 {[%emt 0:00:00] Active counter play!} 38. Re5 Rxe5 {[%emt 0:00:00]} 39. Be2 {[%emt 0:01:24]} 0-1

[Event "LEM Niedersachsen-Meister 2025"]
[Site "Verden"]
[Date "2025.01.03"]
[Round "4.6"]
[White "Pubantz, Jan"]
[Black "Bargsten, Justus"]
[Result "1/2-1/2"]
[ECO "E08"]
[WhiteElo "2339"]
[BlackElo "2228"]
[Annotator "TA"]
[PlyCount "45"]
[EventDate "2024.12.27"]
[EventType "swiss"]
[EventCountry "GER"]
[SourceTitle "playchess.com"]
[Source "ChessBase"]
[SourceQuality "1"]
[TimeControl "40/5400+30:1800+30"]

{[%evp 17,45,6,20,27,29,20,25,0,22,0,0,0,0,0,0,-22,0,0,0,0,0,0,0,0,0,0,0,0,0,-8]} 1. d4 {[%emt 0:04:51]} d5 {[%emt 0:00:05]} 2. c4 {[%emt 0:00:02]} e6 {[%emt 0:00:05]} 3. g3 {[%emt 0:00:23]} Nf6 {[%emt 0:00:11]} 4. Nf3 {[%emt 0:00:25]} Bb4+ {[%emt 0:00:05]} 5. Bd2 {[%emt 0:00:08]} Be7 {[%emt 0:00:06]} 6. Bg2 {[%emt 0:00:16]} O-O {[%emt 0:00:11]} 7. O-O {[%emt 0:00:10]} c6 {[%emt 0:00:03]} 8. Qc2 {[%emt 0:00:17]} Nbd7 {[%emt 0:00:06]} 9. Bf4 {[%emt 0:00:57]} a5 {[%emt 0:00:05]} 10. Rd1 {[%emt 0:01:22]} a4 {[%emt 0:00:08]} 11. Ne5 {[%emt 0:03:38]} Qa5 {[%emt 0:00:05]} 12. Nc3 {[%emt 0:04:40] White has an edge.} Nxe5 {[%emt 0:00:08] The position is equal.} 13. dxe5 {[%emt 0:02:19]} Nd7 {[%emt 0:00:09]} 14. cxd5 {[%emt 0:00:19]} exd5 {[%emt 0:00:02]} 15. e4 {[%emt 0:02:39]} dxe4 {[%emt 0:00:07]} 16. Bxe4 {[%emt 0:03:37]} g6 {[%emt 0:00:05][%cal Oa4a3]} (16... h6 {simplifies} 17. Bd2 Qc5 18. Nxa4 Qxc2 19. Bxc2 b5) 17. Bh6 {[%emt 0:06:30]} Nxe5 {[%emt 0:00:07]} 18. Nd5 {[%emt 0:09:40]} Re8 {[%emt 0:07:52]} (18... cxd5 19. Rxd5 Qb6 20. Bxf8 (20. Rxe5 Bf6 $17) 20... Kxf8 21. Rxe5 $14) 19. Nxe7+ {[%emt 0:04:08]} Rxe7 {[%emt 0:00:10]} 20. Qxa4 $1 {[%emt 0:11:03]} Re8 {[%emt 0:10:42]} ({Don't blunder} 20... Nf3+ $2 21. Bxf3 Re8 22. Qd4 $18) 21. Qxa5 {[%emt 0:05:39]} Rxa5 {[%emt 0:00:02]} 22. Re1 {[%emt 0:01:51]} Be6 {[%emt 0:04:15][%cal Of7f5]} 23. a3 {[%emt 0:03:16] A rather calm draw.   Weighted Error Value: White=0.06 (flawless) /Black=0.03 (flawless) .  OK:         	White=6     	Black=7      Strong:       	White=1     	---} 1/2-1/2

[Event "LEM Niedersachsen-Meister 2025"]
[Site "Verden"]
[Date "2025.01.03"]
[Round "4.7"]
[White "Plischki, Sebastian"]
[Black "Mueer, Sebastian"]
[Result "0-1"]
[ECO "E42"]
[WhiteElo "2323"]
[BlackElo "2175"]
[Annotator "TA"]
[PlyCount "44"]
[EventDate "2024.12.27"]
[EventType "swiss"]
[EventCountry "GER"]
[SourceTitle "playchess.com"]
[Source "ChessBase"]
[SourceQuality "1"]
[TimeControl "40/5400+30:1800+30"]

{[%evp 12,44,21,35,41,43,28,7,6,8,8,0,-1,-9,-4,6,4,-11,8,0,0,-19,-13,-244,-250,-244,-239,-254,-256,-253,-238,-346,-340,-334,-334]} 1. d4 {[%emt 0:00:03]} Nf6 {[%emt 0:11:26]} 2. c4 {[%emt 0:00:30]} e6 {[%emt 0:00:09]} 3. Nc3 {[%emt 0:00:18]} Bb4 {[%emt 0:00:12][%cal Bf8b4,Bb4a5,Ba5c7,Bc7b8][%mdl 32]} 4. e3 {[%emt 0:00:21]} c5 {[%emt 0:00:08]} 5. Nge2 {[%emt 0:00:20]} d5 {[%emt 0:00:22]} 6. a3 {[%emt 0:00:42]} Ba5 {[%emt 0:00:12]} 7. dxc5 {[%emt 0:00:48]} dxc4 {[%emt 0:00:06]} 8. Bd2 {[%emt 0:02:01]} Nbd7 {[%emt 0:04:30]} 9. Nf4 {[%emt 0:05:55]} Nxc5 {[%emt 0:03:09][%cal Ob7b5] White must now prevent ...b5! The position is equal.} 10. Bxc4 {[%emt 0:00:17] aiming for b4.} Bc7 {[%emt 0:02:55]} 11. O-O {[%emt 0:01:46]} O-O {[%emt 0:02:44]} 12. Qc2 {[%emt 0:02:30]} b6 {[%emt 0:02:20]} 13. b4 {[%emt 0:03:23]} Ncd7 {[%emt 0:06:48]} 14. Rfd1 {[%emt 0:05:43]} Bb7 {[%emt 0:10:29]} 15. Nb5 {[%emt 0:11:52][%cal Of4e6]} Bb8 {[%emt 0:02:49]} 16. Bc3 {[%emt 0:02:36][%cal Of4e6]} Qe7 {[%emt 0:01:12] Threatens to win with ...e5.} 17. Qb2 $2 {[%emt 0:05:48] Loses the game.} (17. Bb2 $11 {and White stays safe.}) 17... e5 $1 $19 {[%emt 0:01:37]} 18. Nd5 {[%emt 0:02:26]} Nxd5 {[%emt 0:00:52]} 19. Bxd5 {[%emt 0:00:31]} Bxd5 {[%emt 0:00:07]} 20. Rxd5 {[%emt 0:00:04] [#]} a6 $1 {[%emt 0:01:03]} 21. Nd6 {[%emt 0:17:24] [#]} (21. Qe2 $142 Nf6 (21... axb5 $2 22. Qxb5 Nf6 23. Rdd1 $19) 22. Rdd1 axb5 23. Qxb5) 21... Nf6 $1 {[%emt 0:00:52]} ({Worse is} 21... Bxd6 22. Rad1 $11) 22. Nf5 {[%emt 0:02:19]} Qe6 {[%emt 0:00:43] Weighted Error Value: White=0.36/Black=0.01 (flawless) .  Loses game:     	White=1     	---        Mistake:       	White=1     	---        OK:         	White=5     	Black=7      Best:        	White=1     	Black=1      Strong:       	---       	Black=3} 0-1